bitfinex/quotes_BTCUSD_20250101
["timestamp","ask_amount","ask_price","bid_price","bid_amount"]
[1735752807375,0.212357,94181.0,94178.0,0.0752]
[1735752808013,0.424714,94181.0,94178.0,0.0752]
[1735752816169,0.42625965,94181.0,94178.0,0.0752]
[1735752820912,0.42625965,94181.0,94178.0,0.0753706]
[1735752821117,0.42634495,94181.0,94178.0,0.0753706]
[1735752823937,0.4247993,94181.0,94178.0,0.0753706]
[1735752824139,0.362361,94179.0,94178.0,0.0001706]
[1735752824346,1.97765757,94179.0,94178.0,0.0001706]
[1735752824552,1.99959617,94179.0,94178.0,0.0001706]
[1735752825694,0.69963117,94179.0,94178.0,0.0001706]
[1735752825900,3.26170717,94179.0,94178.0,0.0011706]
[1735752826097,0.69963117,94179.0,94178.0,0.0011706]
[1735752826304,3.25041717,94179.0,94178.0,0.0011706]
[1735752826499,0.69963117,94179.0,94178.0,0.0011706]
[1735752826717,3.37436817,94179.0,94178.0,0.0011706]
[1735752826919,3.38460817,94179.0,94178.0,0.0011706]
[1735752827746,3.36848017,94179.0,94178.0,0.0011706]
[1735752827951,3.36848017,94179.0,94178.0,0.0001706]
[1735752828327,3.37748017,94179.0,94178.0,0.0011706]
[1735752828523,3.36848017,94179.0,94178.0,0.0001706]
[1735752828754,3.37248017,94179.0,94178.0,0.0001706]
[1735752828931,3.35592017,94179.0,94178.0,0.0011706]
[1735752829209,3.36092017,94179.0,94178.0,0.0011706]
[1735752829410,3.33961617,94179.0,94178.0,0.0011706]
[1735752829596,3.34361617,94179.0,94178.0,0.0011706]
[1735752829802,3.25549817,94179.0,94178.0,0.0011706]
[1735752832523,3.13904517,94179.0,94178.0,0.0011706]
[1735752832857,3.11507517,94179.0,94178.0,0.0011706]
[1735752833135,2.76424917,94179.0,94178.0,0.0011706]
[1735752833334,1.31555017,94179.0,94178.0,0.0011706]
[1735752833541,1.21872917,94179.0,94178.0,0.0011706]
[1735752833743,1.03594317,94179.0,94178.0,0.0011706]
[1735752833975,0.93701117,94179.0,94178.0,0.0011706]
[1735752834304,0.82411899,94179.0,94178.0,0.0001706]
[1735752834504,0.92401117,94179.0,94178.0,0.0001706]
[1735752834706,0.93201117,94179.0,94178.0,0.0011706]
[1735752834914,0.93601117,94179.0,94178.0,0.0001706]
[1735752835120,0.94401117,94179.0,94178.0,0.0011706]
[1735752836540,0.94001117,94179.0,94178.0,0.0011706]
[1735752838147,0.94401117,94179.0,94178.0,0.0011706]
[1735752842665,0.94401117,94179.0,94178.0,0.0810706]
[1735752843080,0.94401117,94179.0,94178.0,0.0011706]
[1735752844241,1.22341017,94179.0,94178.0,0.0011706]
[1735752844390,1.15904217,94179.0,94178.0,0.0011706]
[1735752852435,0.62450874,94179.0,94178.0,0.0011706]
[1735752852591,0.72450799,94179.0,94178.0,0.0821706]
[1735752852796,0.62052167,94179.0,94178.0,0.0821706]
[1735752853613,0.61873998,94179.0,94178.0,0.0821706]
[1735752854092,0.51874073,94179.0,94178.0,0.0821706]
[1735752854674,0.26397173,94179.0,94178.0,0.0821706]
[1735752854975,0.232361,94179.0,94178.0,0.1308706]
[1735752855806,0.382361,94179.0,94178.0,0.1308706]
[1735752857025,0.529182,94179.0,94178.0,0.1308706]
[1735752857712,0.382361,94179.0,94178.0,0.1308706]
[1735752862426,0.382361,94179.0,94178.0,0.1538706]
[1735752862427,0.02,94179.0,94178.0,0.1538706]
[1735752862627,0.02,94179.0,94178.0,0.17451422]
[1735752862853,0.02,94179.0,94178.0,0.1591101]
[1735752863283,0.016,94179.0,94178.0,0.1591101]
[1735752863684,0.016,94179.0,94178.0,0.1601101]
[1735752864697,8.53e-05,94181.0,94180.0,0.1527]
[1735752865106,8.53e-05,94181.0,94180.0,0.15792186]
[1735752866134,8.53e-05,94181.0,94180.0,0.15992186]
[1735752866312,8.53e-05,94181.0,94180.0,0.16092186]
[1735752874930,0.1500853,94181.0,94180.0,0.16092186]
[1735752876305,0.20530855,94181.0,94180.0,0.16092186]
[1735752876513,0.1500853,94181.0,94180.0,0.16092186]
[1735752878311,0.18539391,94181.0,94180.0,0.13792186]
[1735752878823,0.18539391,94181.0,94180.0,0.13492186]
[1735752879029,0.18639391,94181.0,94180.0,0.13492186]
[1735752879828,0.18739391,94181.0,94180.0,0.13492186]
[1735752880427,0.18639391,94181.0,94180.0,0.13492186]
[1735752880783,0.18939391,94181.0,94180.0,0.13492186]
[1735752881789,0.18939391,94181.0,94180.0,0.13509246]
[1735752887895,0.18745849,94181.0,94180.0,0.13509246]
[1735752895230,0.1540853,94181.0,94180.0,0.13509246]
[1735752897287,0.0040853,94181.0,94180.0,0.13509246]
[1735752903457,0.0040853,94181.0,94180.0,0.27562215]
[1735752903663,0.0040853,94181.0,94180.0,0.26207878]
[1735752904568,8.53e-05,94181.0,94180.0,0.26207878]
[1735752904983,8.53e-05,94181.0,94180.0,0.26407878]
[1735752905727,0.0010853,94181.0,94180.0,0.26407878]
[1735752906320,8.53e-05,94181.0,94180.0,0.26407878]
[1735752906668,8.53e-05,94181.0,94180.0,0.26507878]
[1735752913389,8.53e-05,94181.0,94180.0,0.29163156]
[1735752913569,8.53e-05,94181.0,94180.0,0.2651866]
[1735752914763,0.2003637,94202.0,94182.0,0.1256]
[1735752914983,0.15,94201.0,94192.0,0.023]
[1735752915191,0.15,94201.0,94196.0,0.0777]
[1735752915403,0.15,94201.0,94197.0,0.023]
[1735752915816,0.362312,94201.0,94198.0,0.0777]
[1735752916447,0.362312,94201.0,94199.0,0.00520658]
[1735752916826,0.365312,94201.0,94200.0,0.0777]
[1735752917167,0.362312,94201.0,94200.0,0.0777]
[1735752917405,0.362312,94201.0,94200.0,0.08290658]
[1735752918600,0.365312,94201.0,94200.0,0.08290658]
[1735752918995,0.372312,94201.0,94200.0,0.08390658]
[1735752919207,0.362312,94201.0,94200.0,0.08290658]
[1735752919633,0.363312,94201.0,94200.0,0.08290658]
[1735752927346,0.363312,94201.0,94200.0,0.0777]
[1735752928915,0.363312,94201.0,94200.0,0.0778706]
[1735752936298,0.363312,94201.0,94200.0,0.25115692]
[1735752936299,0.001,94201.0,94200.0,0.25115692]
[1735752936476,0.001,94201.0,94200.0,0.26257476]
[1735752960699,0.001,94201.0,94200.0,0.26268258]
[1735752961820,8.53e-05,94202.0,94201.0,0.02310782]
[1735752961986,8.53e-05,94202.0,94201.0,0.24859414]
[1735752962227,8.53e-05,94202.0,94201.0,0.30726966]
[1735752964319,0.0010853,94202.0,94201.0,0.31526966]
[1735752964524,0.0010853,94202.0,94201.0,0.31826966]
[1735752966770,0.0010853,94202.0,94201.0,0.31526966]
[1735752966977,0.0010853,94202.0,94201.0,0.31926966]
[1735752967183,8.53e-05,94202.0,94201.0,0.31126966]
[1735752967561,8.53e-05,94202.0,94201.0,0.32026966]
[1735752971398,8.53e-05,94208.0,94203.0,0.25230782]
[1735752971624,8.53e-05,94208.0,94203.0,0.72168009]
[1735752971814,8.53e-05,94208.0,94203.0,0.73759142]
[1735752972039,8.53e-05,94208.0,94207.0,0.00010782]
[1735752972270,8.53e-05,94208.0,94207.0,0.56859214]
[1735752972482,8.53e-05,94208.0,94207.0,0.68079214]
[1735752972652,8.53e-05,94208.0,94207.0,0.79617809]
[1735752972835,0.0002,94209.0,94208.0,0.37310782]
[1735752973043,8.53e-05,94218.0,94217.0,1.11918282]
[1735752973238,8.53e-05,94234.0,94223.0,0.1]
[1735752973443,8.53e-05,94234.0,94223.0,0.68064832]
[1735752973657,8.53e-05,94234.0,94223.0,0.67254246]
[1735752973840,8.53e-05,94234.0,94223.0,0.68393376]
[1735752974970,8.53e-05,94234.0,94223.0,0.69493376]
[1735752975152,8.53e-05,94234.0,94223.0,0.68593376]
[1735752975348,8.53e-05,94234.0,94223.0,0.69493376]
[1735752976283,8.53e-05,94234.0,94223.0,0.69293376]
[1735752976513,8.53e-05,94234.0,94223.0,0.69693376]
[1735752977505,8.53e-05,94234.0,94223.0,0.46994744]
[1735752977887,8.53e-05,94234.0,94223.0,0.46983962]
[1735752978117,8.53e-05,94234.0,94223.0,0.49294744]
[1735752993744,8.53e-05,94234.0,94224.0,0.023]
[1735752993938,8.53e-05,94234.0,94233.0,0.46233314]
[1735752994156,8.53e-05,94234.0,94233.0,0.52979145]
[1735752994304,8.53e-05,94234.0,94233.0,0.54114691]
[1735752995123,8.53e-05,94234.0,94233.0,0.54129658]
[1735752996614,8.53e-05,94234.0,94233.0,0.54329658]
[1735752997205,8.53e-05,94234.0,94233.0,0.55229658]
[1735752997408,8.53e-05,94234.0,94233.0,0.54329658]
[1735752997808,8.53e-05,94234.0,94233.0,0.55029658]
[1735752998271,8.53e-05,94234.0,94233.0,0.55529658]
[1735752998446,8.53e-05,94234.0,94233.0,0.57115108]
[1735752998643,8.53e-05,94234.0,94233.0,0.56615108]
[1735752999064,8.53e-05,94234.0,94233.0,0.57115108]
[1735753000295,8.53e-05,94234.0,94233.0,0.50369277]
[1735753004253,8.53e-05,94234.0,94233.0,2.60369277]
[1735753012026,8.53e-05,94234.0,94233.0,2.60794377]
[1735753017048,8.53e-05,94234.0,94233.0,2.60369277]
[1735753017875,8.53e-05,94234.0,94233.0,2.39145377]
[1735753018611,8.53e-05,94234.0,94233.0,2.37559927]
[1735753020473,8.53e-05,94234.0,94233.0,2.39148287]
[1735753021082,8.53e-05,94234.0,94233.0,2.32168287]
[1735753021691,8.53e-05,94234.0,94233.0,2.32879927]
[1735753024333,8.53e-05,94234.0,94233.0,2.22949145]
[1735753024538,0.03127621,94234.0,94233.0,2.22949145]
[1735753024746,0.05603576,94234.0,94233.0,2.12550513]
[1735753024925,0.02498142,94234.0,94233.0,2.12550513]
[1735753025097,0.00062187,94234.0,94233.0,2.12550513]
[1735753025735,0.00062187,94234.0,94233.0,2.14350513]
[1735753026125,0.84481821,94234.0,94233.0,2.12150513]
[1735753026332,0.65164372,94234.0,94233.0,2.12150513]
[1735753026527,0.75164297,94234.0,94233.0,2.12050513]
[1735753026758,0.75164297,94234.0,94233.0,2.11150513]
[1735753027094,0.75164297,94234.0,94233.0,2.11550513]
[1735753027325,0.95552147,94234.0,94233.0,2.03060913]
[1735753027571,0.95552147,94234.0,94233.0,2.01992725]
[1735753027771,0.95552147,94234.0,94233.0,1.99870325]
[1735753027973,0.95652147,94234.0,94233.0,1.91380725]
[1735753028191,0.95552147,94234.0,94233.0,1.90980725]
[1735753028634,0.95652147,94234.0,94233.0,1.88858325]
[1735753028871,0.95552147,94234.0,94233.0,1.84613525]
[1735753029112,0.95552147,94234.0,94233.0,1.82491125]
[1735753029320,0.95552147,94234.0,94233.0,1.80368725]
[1735753030127,0.95552147,94234.0,94233.0,1.78346325]
[1735753030490,0.95552147,94234.0,94233.0,1.76123925]
[1735753030690,0.95552147,94234.0,94233.0,1.74101525]
[1735753030969,0.95552147,94234.0,94233.0,1.69856725]
[1735753031171,0.95552147,94234.0,94233.0,1.65611925]
[1735753031672,0.95552147,94234.0,94233.0,1.63489525]
[1735753031832,0.95552147,94234.0,94233.0,1.59244725]
[1735753032377,0.95552147,94234.0,94233.0,1.54999925]
[1735753032680,0.95552147,94234.0,94233.0,1.52877525]
[1735753033178,0.95552147,94234.0,94233.0,1.44387925]
[1735753033763,0.95552147,94234.0,94233.0,1.42265525]
[1735753033962,0.95552147,94234.0,94233.0,1.40143125]
[1735753034167,0.95291847,94234.0,94233.0,1.35898325]
[1735753034684,0.95300377,94234.0,94233.0,1.31653525]
[1735753035179,0.95300377,94234.0,94233.0,1.27408725]
[1735753035356,0.95300377,94234.0,94233.0,1.23163925]
[1735753035693,0.95300377,94234.0,94233.0,1.21041525]
[1735753035900,0.95300377,94234.0,94233.0,1.18919125]
[1735753036151,1.83283877,94234.0,94233.0,1.14674325]
[1735753036359,1.83283877,94234.0,94233.0,1.12551925]
[1735753036642,1.71666977,94234.0,94233.0,1.12551925]
[1735753036842,1.71666977,94234.0,94233.0,1.08307125]
[1735753037048,1.71666977,94234.0,94233.0,1.01939925]
[1735753037252,1.56548877,94234.0,94233.0,1.01939925]
[1735753037453,1.41176277,94234.0,94233.0,1.01939925]
[1735753037647,1.39049477,94234.0,94233.0,1.01939925]
[1735753037856,1.24731477,94234.0,94233.0,0.95572725]
[1735753038275,1.02133277,94234.0,94233.0,0.95572725]
[1735753038413,0.96872077,94234.0,94233.0,0.95572725]
[1735753039265,0.96872077,94234.0,94233.0,0.93450325]
[1735753039898,0.96872077,94234.0,94233.0,0.89205525]
[1735753040101,0.96872077,94234.0,94233.0,0.82838325]
[1735753040933,0.96872077,94234.0,94233.0,0.78593525]
[1735753041134,0.96872077,94234.0,94233.0,0.76471125]
[1735753041335,0.96872077,94234.0,94233.0,0.72226325]
[1735753041892,0.96872077,94234.0,94233.0,0.68885462]
[1735753042276,0.96872077,94234.0,94233.0,0.64640662]
[1735753043304,0.96872077,94234.0,94233.0,0.62518262]
[1735753045059,0.96882333,94234.0,94233.0,0.62518262]
[1735753045465,0.88331305,94234.0,94233.0,0.62518262]
[1735753046125,0.81986405,94234.0,94233.0,0.62518262]
[1735753046499,0.81986405,94234.0,94233.0,0.62418262]
[1735753046679,0.81986405,94234.0,94233.0,0.62435322]
[1735753046879,0.81986405,94234.0,94233.0,0.62535322]
[1735753047415,0.46587848,94234.0,94233.0,0.62535322]
[1735753047891,0.3659863,94234.0,94233.0,0.62535322]
[1735753048034,0.46587848,94234.0,94233.0,0.62535322]
[1735753048668,0.42093048,94234.0,94233.0,0.62535322]
[1735753049817,0.57093048,94234.0,94233.0,0.62535322]
[1735753050043,0.57093048,94234.0,94233.0,0.62435322]
[1735753050447,0.57093048,94234.0,94233.0,0.62535322]
[1735753050859,0.57093048,94234.0,94233.0,0.62435322]
[1735753051062,0.57093048,94234.0,94233.0,0.62535322]
[1735753053346,0.57093048,94234.0,94233.0,0.62635322]
[1735753056517,0.24997748,94234.0,94233.0,0.62635322]
[1735753056707,0.98174448,94234.0,94233.0,0.62635322]
[1735753057033,1.01247048,94234.0,94233.0,0.62635322]
[1735753057236,1.04335972,94234.0,94233.0,0.62635322]
[1735753059059,1.14990003,94234.0,94233.0,0.50555306]
[1735753059257,1.15009728,94234.0,94233.0,0.50555306]
[1735753059869,1.15009728,94234.0,94233.0,0.46310506]
[1735753060124,1.15009728,94234.0,94233.0,0.39743306]
[1735753060425,1.34085401,94234.0,94233.0,0.39943306]
[1735753060762,1.34085401,94234.0,94233.0,0.30299494]
[1735753061193,1.15009728,94234.0,94233.0,0.28277094]
[1735753061619,1.15009728,94234.0,94233.0,0.26154694]
[1735753061791,1.65009728,94234.0,94233.0,0.19687494]
[1735753061994,1.65009728,94234.0,94233.0,0.17665094]
[1735753061995,1.65709728,94234.0,94233.0,0.17665094]
[1735753062619,1.65009728,94234.0,94233.0,0.15342694]
[1735753062823,1.65609728,94234.0,94233.0,0.06953094]
[1735753062977,1.66509728,94234.0,94233.0,0.07053094]
[1735753063174,1.66509728,94234.0,94233.0,0.06953094]
[1735753063452,1.65909728,94234.0,94233.0,0.06853094]
[1735753063643,1.67409728,94234.0,94233.0,0.07053094]
[1735753063861,1.67409728,94234.0,94233.0,0.02808294]
[1735753064921,1.66809728,94234.0,94233.0,9.4e-07]
[1735753065114,0.90560428,94234.0,94233.0,9.4e-07]
[1735753065500,0.91260428,94234.0,94233.0,9.4e-07]
[1735753065704,0.46214918,94225.0,94224.0,0.0001706]
[1735753065910,2.1218505,94225.0,94224.0,0.00028811]
[1735753066023,2.0936105,94225.0,94224.0,0.00028811]
[1735753067076,2.0976105,94225.0,94224.0,0.00028811]
[1735753067276,2.0976105,94225.0,94224.0,0.00128811]
[1735753067473,2.1056105,94225.0,94224.0,0.00128811]
[1735753067880,1.5942725,94225.0,94224.0,0.00128811]
[1735753068103,1.3903855,94225.0,94224.0,0.00128811]
[1735753068303,1.3381795,94225.0,94224.0,0.00128811]
[1735753068536,0.67241818,94225.0,94224.0,0.00128811]
[1735753072942,0.67230805,94225.0,94224.0,0.00128811]
[1735753074520,0.9590097,94225.0,94224.0,0.00128811]
[1735753075421,0.67230805,94225.0,94224.0,0.00128811]
[1735753075849,0.70319729,94225.0,94224.0,0.00128811]
[1735753076662,0.60341524,94225.0,94224.0,0.00128811]
[1735753076972,0.70319729,94225.0,94224.0,0.00128811]
[1735753077926,1.02644936,94225.0,94224.0,0.00128811]
[1735753081758,0.92666731,94225.0,94224.0,0.00128811]
[1735753081966,1.02644936,94225.0,94224.0,0.00128811]
[1735753082746,1.02668339,94225.0,94224.0,0.00128811]
[1735753083010,1.13066971,94225.0,94224.0,0.00128811]
[1735753084923,0.80751004,94225.0,94224.0,0.00128811]
[1735753085697,0.60924104,94225.0,94224.0,0.00128811]
[1735753086121,2.57141204,94225.0,94224.0,0.00128811]
[1735753086321,2.46885104,94225.0,94224.0,0.00128811]
[1735753088850,2.43377304,94225.0,94224.0,0.00128811]
[1735753090012,2.40571061,94225.0,94224.0,0.00128811]
[1735753090220,1.57438956,94225.0,94224.0,0.00128811]
[1735753090439,1.57068561,94225.0,94224.0,0.00128811]
[1735753093176,1.57077091,94225.0,94224.0,0.00128811]
[1735753094203,2.07077091,94225.0,94224.0,0.00128811]
[1735753095509,1.68063091,94225.0,94224.0,0.00128811]
[1735753098047,1.36379391,94225.0,94224.0,0.00128811]
[1735753100179,1.26401186,94225.0,94224.0,0.00128811]
[1735753100476,1.36379391,94225.0,94224.0,0.04718811]
[1735753100907,1.81499991,94225.0,94224.0,0.04718811]
[1735753101260,1.71521786,94225.0,94224.0,0.04718811]
[1735753101488,1.51500654,94225.0,94224.0,0.04718811]
[1735753101671,1.51500654,94225.0,94224.0,0.12378811]
[1735753101672,0.8743423,94225.0,94224.0,0.12378811]
[1735753103193,1.0249203,94225.0,94224.0,0.12378811]
[1735753103387,1.0015593,94225.0,94224.0,0.12378811]
[1735753105163,0.8743423,94225.0,94224.0,0.12378811]
[1735753105794,0.9993423,94225.0,94224.0,0.12378811]
[1735753113613,0.8743423,94225.0,94224.0,0.12378811]
[1735753113904,0.9811523,94225.0,94224.0,0.12378811]
[1735753114918,1.0252273,94225.0,94224.0,0.12378811]
[1735753115345,0.5252273,94225.0,94224.0,0.12378811]
[1735753119101,0.3743423,94225.0,94224.0,0.12378811]
[1735753119298,0.5163983,94225.0,94224.0,0.12378811]
[1735753120139,0.3743423,94225.0,94224.0,0.12378811]
[1735753120403,0.3743423,94225.0,94224.0,0.13363743]
[1735753121255,0.5164273,94225.0,94224.0,0.13363743]
[1735753121741,0.5164273,94225.0,94224.0,0.12378811]
[1735753122753,0.80362012,94225.0,94224.0,0.12378811]
[1735753128876,0.80182012,94225.0,94224.0,0.12378811]
[1735753130169,0.5146273,94225.0,94224.0,0.12378811]
[1735753134602,0.3725423,94225.0,94224.0,0.12378811]
[1735753134807,0.3725423,94225.0,94224.0,0.14678811]
[1735753134808,0.0120853,94225.0,94224.0,0.14678811]
[1735753135216,0.0120853,94225.0,94224.0,0.15663342]
[1735753139443,0.0120853,94225.0,94224.0,0.26061974]
[1735753140286,0.0040853,94225.0,94224.0,0.25961974]
[1735753140483,0.0040853,94225.0,94224.0,0.26061974]
[1735753140909,8.53e-05,94225.0,94224.0,0.26061974]
[1735753141323,0.0020853,94225.0,94224.0,0.26061974]
[1735753141722,8.53e-05,94225.0,94224.0,0.26061974]
[1735753142146,8.53e-05,94225.0,94224.0,0.26161974]
[1735753143365,8.53e-05,94225.0,94224.0,0.36161974]
[1735753144344,8.53e-05,94225.0,94224.0,0.39782057]
[1735753144741,8.53e-05,94225.0,94224.0,0.36161974]
[1735753146988,8.53e-05,94225.0,94224.0,0.36183769]
[1735753149512,8.53e-05,94225.0,94224.0,0.36161974]
[1735753149667,8.53e-05,94225.0,94224.0,0.36183769]
[1735753155071,1.584e-05,94225.0,94224.0,0.36183769]
[1735753158184,1.584e-05,94225.0,94224.0,0.41926542]
[1735753158992,1.584e-05,94225.0,94224.0,0.36183769]
[1735753170822,0.21118738,94237.0,94225.0,0.023]
[1735753171023,0.21118738,94237.0,94227.0,0.023]
[1735753171229,0.21118738,94237.0,94230.0,0.0826]
[1735753171432,0.21118738,94237.0,94231.0,0.12698632]
[1735753171647,0.21118738,94237.0,94231.0,0.1368135]
[1735753172015,0.21318738,94237.0,94231.0,0.1368135]
[1735753172208,0.21818738,94237.0,94233.0,0.00021795]
[1735753172463,0.21618738,94237.0,94233.0,0.00021795]
[1735753172639,0.22118738,94237.0,94235.0,0.023]
[1735753172850,0.22318738,94237.0,94235.0,0.023]
[1735753173049,0.22318738,94237.0,94233.0,0.00021795]
[1735753173248,0.01,94237.0,94236.0,0.03282718]
[1735753173423,8.53e-05,94238.0,94237.0,0.023]
[1735753174165,8.53e-05,94238.0,94233.0,0.00021795]
[1735753174585,0.002,94237.0,94235.0,0.023]
[1735753175022,0.0020853,94237.0,94233.0,0.00021795]
[1735753175201,8.53e-05,94237.0,94236.0,0.03282718]
[1735753178762,8.53e-05,94237.0,94224.0,0.12900606]
[1735753178763,0.212246,94230.0,94224.0,0.00028811]
[1735753180299,0.19151571,94231.0,94224.0,0.00028811]
[1735753180508,0.19151571,94231.0,94230.0,0.023]
[1735753181149,0.19151571,94233.0,94230.0,0.021]
[1735753181357,0.19151571,94233.0,94231.0,0.01506587]
[1735753181542,0.19151571,94233.0,94232.0,0.0777]
[1735753181672,0.19151571,94233.0,94232.0,0.08752449]
[1735753181872,0.23939464,94234.0,94232.0,0.08752449]
[1735753182543,0.003,94233.0,94232.0,0.08752449]
[1735753182688,0.004,94233.0,94232.0,0.08752449]
[1735753182884,0.001,94233.0,94232.0,0.08752449]
[1735753183094,0.001,94233.0,94232.0,0.11152449]
[1735753183788,0.001,94233.0,94232.0,0.11352449]
[1735753183993,0.19245414,94233.0,94232.0,0.11352449]
[1735753184198,0.19145414,94233.0,94232.0,0.11352449]
[1735753184553,0.19145414,94233.0,94232.0,0.11452449]
[1735753184923,0.19145414,94233.0,94232.0,0.11352449]
[1735753185346,0.23939464,94234.0,94233.0,0.023]
[1735753186039,0.23939464,94234.0,94233.0,0.03282449]
[1735753186153,8.53e-05,94237.0,94233.0,0.03282449]
[1735753186396,8.53e-05,94237.0,94233.0,0.023]
[1735753186827,8.53e-05,94237.0,94233.0,0.024]
[1735753187597,8.53e-05,94237.0,94233.0,0.025]
[1735753187931,8.53e-05,94237.0,94233.0,0.024]
[1735753188561,8.53e-05,94237.0,94233.0,0.023]
[1735753190112,0.212233,94236.0,94233.0,0.023]
[1735753190394,0.212233,94236.0,94229.0,0.0467706]
[1735753190395,0.212237,94234.0,94229.0,0.0467706]
[1735753191112,0.212237,94234.0,94230.0,0.023]
[1735753191336,0.212237,94234.0,94233.0,0.001]
[1735753191779,0.212237,94234.0,94230.0,0.023]
[1735753192324,0.212233,94236.0,94232.0,0.023]
[1735753192540,0.21555164,94238.0,94232.0,0.023]
[1735753192699,0.21223,94237.0,94232.0,0.023]
[1735753192898,0.212233,94236.0,94232.0,0.023]
[1735753193330,0.19167028,94234.0,94232.0,0.023]
[1735753194387,0.21223,94237.0,94232.0,0.023]
[1735753197909,0.2123153,94237.0,94232.0,0.023]
[1735753198512,0.2143153,94237.0,94232.0,0.023]
[1735753199649,0.26953855,94237.0,94232.0,0.023]
[1735753199840,0.2143153,94237.0,94232.0,0.023]
[1735753204466,0.2123153,94237.0,94232.0,0.023]
[1735753204610,0.2143153,94237.0,94232.0,0.023]
[1735753205905,0.2123153,94237.0,94232.0,0.023]
[1735753206701,8.53e-05,94237.0,94230.0,0.0231706]
[1735753206906,8.53e-05,94237.0,94234.0,0.023]
[1735753207264,0.0020853,94237.0,94234.0,0.023]
[1735753207470,8.53e-05,94237.0,94232.0,0.023]
[1735753207683,8.53e-05,94237.0,94230.0,0.0231706]
[1735753207887,0.0010853,94237.0,94233.0,0.0803]
[1735753208092,8.53e-05,94237.0,94235.0,0.0803]
[1735753208300,8.53e-05,94237.0,94236.0,0.023]
[1735753208496,0.0010853,94237.0,94236.0,0.023]
[1735753208862,0.0010853,94237.0,94230.0,0.0001706]
[1735753208863,0.0010853,94237.0,94233.0,0.0803]
[1735753209071,0.0010853,94237.0,94234.0,0.023]
[1735753209274,0.0010853,94237.0,94236.0,0.023]
[1735753209475,8.53e-05,94237.0,94236.0,0.1033]
[1735753210674,0.0010853,94237.0,94236.0,0.1033]
[1735753211034,8.53e-05,94237.0,94236.0,0.1033]
[1735753211452,0.0010853,94237.0,94236.0,0.1033]
[1735753215735,0.424466,94236.0,94232.0,0.0001706]
[1735753217478,0.425466,94236.0,94232.0,0.0001706]
[1735753218108,0.424466,94236.0,94232.0,0.0001706]
[1735753218481,0.425466,94236.0,94232.0,0.0001706]
[1735753218674,0.424466,94236.0,94232.0,0.0001706]
[1735753219646,0.425466,94236.0,94232.0,0.0001706]
[1735753220715,0.424466,94236.0,94232.0,0.0001706]
[1735753221241,0.429466,94236.0,94232.0,0.0001706]
[1735753221772,0.218233,94236.0,94232.0,0.0001706]
[1735753221970,0.212233,94236.0,94234.0,0.023]
[1735753222357,0.214233,94236.0,94235.0,0.03281805]
[1735753222571,0.214233,94236.0,94235.0,0.023]
[1735753222799,0.213233,94236.0,94235.0,0.023]
[1735753223103,0.445213,94236.0,94235.0,0.023]
[1735753223314,0.213233,94236.0,94235.0,0.023]
[1735753224404,0.212233,94236.0,94235.0,0.023]
[1735753224590,0.506467,94236.0,94235.0,0.023]
[1735753225394,0.384531,94236.0,94235.0,0.023]
[1735753225751,0.212233,94236.0,94235.0,0.023]
[1735753225906,0.213233,94236.0,94235.0,0.023]
[1735753227082,0.492096,94236.0,94235.0,0.023]
[1735753227918,0.492096,94236.0,94232.0,0.0001706]
[1735753227919,0.362236,94235.0,94232.0,0.0001706]
[1735753228124,1.05993,94235.0,94232.0,0.0001706]
[1735753228328,0.362239,94233.0,94232.0,0.0001706]
[1735753228748,0.39250877,94233.0,94232.0,0.0001706]
[1735753229347,0.39250877,94233.0,94232.0,0.0011706]
[1735753229912,0.39250877,94233.0,94232.0,0.0021706]
[1735753230128,0.68007793,94233.0,94232.0,0.0021706]
[1735753231112,0.68007793,94233.0,94232.0,0.0011706]
[1735753231474,0.68007793,94233.0,94232.0,0.0021706]
[1735753231703,0.68007793,94233.0,94232.0,0.0001706]
[1735753232108,0.68507793,94233.0,94232.0,0.0001706]
[1735753232508,0.68407793,94233.0,94232.0,0.0001706]
[1735753232711,0.39650877,94233.0,94232.0,0.0808706]
[1735753232917,0.39750877,94233.0,94232.0,0.0808706]
[1735753234276,0.39250877,94233.0,94232.0,0.0808706]
[1735753234473,0.39650877,94233.0,94232.0,0.0808706]
[1735753235467,0.39650877,94233.0,94232.0,0.0001706]
[1735753237576,0.39550877,94233.0,94232.0,0.0001706]
[1735753237841,0.39650877,94233.0,94232.0,0.0001706]
[1735753238441,0.39250877,94233.0,94232.0,0.0001706]
[1735753238744,0.39650877,94233.0,94232.0,0.0001706]
[1735753239202,0.39350877,94233.0,94232.0,0.0001706]
[1735753239376,0.39250877,94233.0,94232.0,0.0001706]
[1735753240420,0.39550877,94233.0,94232.0,0.0001706]
[1735753240706,0.39250877,94233.0,94232.0,0.0001706]
[1735753240857,0.39350877,94233.0,94232.0,0.0001706]
[1735753241198,0.39650877,94233.0,94232.0,0.0001706]
[1735753241403,0.39550877,94233.0,94232.0,0.0001706]
[1735753241876,0.39650877,94233.0,94232.0,0.0001706]
[1735753244284,0.5085443,94233.0,94232.0,0.0001706]
[1735753244503,1.7020473,94233.0,94232.0,0.0001706]
[1735753244910,1.80182935,94233.0,94232.0,0.0001706]
[1735753245266,1.79882935,94233.0,94232.0,0.0001706]
[1735753245497,1.79782935,94233.0,94232.0,0.0001706]
[1735753245678,1.80682935,94233.0,94232.0,0.0011706]
[1735753246807,1.79882935,94233.0,94232.0,0.0001706]
[1735753247010,1.79782935,94233.0,94232.0,0.0001706]
[1735753247215,1.80682935,94233.0,94232.0,0.0011706]
[1735753247437,0.61732635,94233.0,94232.0,0.0001706]
[1735753247593,0.62632635,94233.0,94232.0,0.0011706]
[1735753247800,1.83405635,94233.0,94232.0,0.0011706]
[1735753248252,1.75826235,94233.0,94232.0,0.0011706]
[1735753249523,1.55029235,94233.0,94232.0,0.0011706]
[1735753249647,1.40033335,94233.0,94232.0,0.0011706]
[1735753249856,1.28547235,94233.0,94232.0,0.0011706]
[1735753254873,1.60812047,94233.0,94232.0,0.0011706]
[1735753257486,1.28547235,94233.0,94232.0,0.0011706]
[1735753258513,1.78547235,94233.0,94232.0,0.0011706]
[1735753258909,1.12632635,94233.0,94232.0,0.0011706]
[1735753259115,2.29562435,94233.0,94232.0,0.0011706]
[1735753259340,2.23421835,94233.0,94232.0,0.0011706]
[1735753259849,1.93713935,94233.0,94232.0,0.0011706]
[1735753260650,1.85769735,94233.0,94232.0,0.0011706]
[1735753260878,1.60255135,94233.0,94232.0,0.0011706]
[1735753272929,1.33314123,94233.0,94232.0,0.0011706]
[1735753273149,1.65578935,94233.0,94232.0,0.0011706]
[1735753273743,1.86802835,94233.0,94232.0,0.0011706]
[1735753274223,1.54538023,94233.0,94232.0,0.0011706]
[1735753279936,1.54546553,94233.0,94232.0,0.0011706]
[1735753285817,2.14449853,94233.0,94232.0,0.0011706]
[1735753286021,2.10813353,94233.0,94232.0,0.0011706]
[1735753286220,2.16335678,94233.0,94232.0,0.0011706]
[1735753286378,2.10813353,94233.0,94232.0,0.0011706]
[1735753287358,2.08431953,94233.0,94232.0,0.0011706]
[1735753288305,1.78980353,94233.0,94232.0,0.0011706]
[1735753292067,1.74917153,94233.0,94232.0,0.0780706]